fUSD/lending_fUSD_20250611
["ID","MTS","AMOUNT","RATE_DAILY","PERIOD"]
[365431518,1749666649503,-470.0,0.00019342,2]
[365431519,1749666649512,-490.0,0.00019342,2]
[365431520,1749666649521,-480.0,0.00019342,2]
[365431521,1749666649530,-490.0,0.00019342,2]
[365431522,1749666649540,-204.96,0.00019342,2]
[365431523,1749666649549,-490.0,0.00019342,2]
[365431524,1749666649558,-490.0,0.00019342,2]
[365431525,1749666649567,-2132.71,0.00019342,2]
[365431526,1749666649577,-490.0,0.00019342,2]
[365431527,1749666649586,-490.0,0.00019342,2]
[365431528,1749666649596,-2172.39,0.00019342,2]
[365431529,1749666649607,-628.46,0.00019342,2]
[365431530,1749666649617,-490.0,0.00019342,2]
[365431531,1749666649627,-738.78,0.00019342,2]
[365431532,1749666649636,-490.0,0.00019342,2]
[365431533,1749666649646,-490.0,0.00019342,2]
[365431534,1749666649655,-786.19,0.00019342,2]
[365431535,1749666649665,-4967.78,0.00019342,2]
[365431536,1749666649674,-490.0,0.00019342,2]
[365431537,1749666649684,-490.0,0.00019342,2]
[365431538,1749666649695,-490.0,0.00019342,2]
[365431539,1749666649704,-490.0,0.00019342,2]
[365431540,1749666649714,-697.72,0.00019342,2]
[365431541,1749666649723,-490.0,0.00019342,2]
[365431542,1749666649733,-316.09,0.00019342,2]
[365431543,1749666649742,-563.76,0.00019342,2]
[365431544,1749666649752,-319.31934752,0.00019342,2]
[365431545,1749666649761,-420.0,0.00019342,2]
[365431546,1749666649770,-490.0,0.00019342,2]
[365431547,1749666649780,-490.0,0.00019342,2]
[365431548,1749666649789,-490.0,0.00019342,2]
[365431549,1749666649798,-490.0,0.00019342,2]
[365431550,1749666649807,-1084.41,0.00019342,2]
[365431551,1749666649817,-490.0,0.00019342,2]
[365431552,1749666649827,-490.0,0.00019342,2]
[365431553,1749666649836,-607.23281469,0.00019342,2]
[365431554,1749666649846,-524.74,0.00019342,2]
[365431555,1749666649855,-490.0,0.00019342,2]
[365431556,1749666649865,-490.0,0.00019342,2]
[365431557,1749666649874,-490.0,0.00019342,2]
[365431558,1749666649884,-490.0,0.00019342,2]
[365431559,1749666649894,-490.0,0.00019342,2]
[365431560,1749666649903,-672.06,0.00019342,2]
[365431561,1749666649913,-490.0,0.00019342,2]
[365431562,1749666649923,-490.0,0.00019342,2]
[365431563,1749666649932,-490.0,0.00019342,2]
[365431564,1749666649942,-490.0,0.00019342,2]
[365431565,1749666649952,-490.0,0.00019342,2]
[365431566,1749666649962,-566.31,0.00019342,2]
[365431567,1749666649971,-490.0,0.00019342,2]
[365431568,1749666649981,-490.0,0.00019342,2]
[365431569,1749666649991,-2960.21,0.00019342,2]
[365431570,1749666650000,-592.64,0.00019342,2]
[365431571,1749666650010,-490.0,0.00019342,2]
[365431572,1749666650020,-6830.81,0.00019342,2]
[365431573,1749666650030,-2153.63,0.00019342,2]
[365431574,1749666650039,-622.08,0.00019342,2]
[365431575,1749666650049,-490.0,0.00019342,2]
[365431576,1749666650058,-490.0,0.00019342,2]
[365431577,1749666650068,-490.0,0.00019342,2]
[365431578,1749666650077,-490.0,0.00019342,2]
[365431579,1749666650087,-490.0,0.00019342,2]
[365431580,1749666650097,-228.68,0.00019342,2]
[365431581,1749666650106,-952.96,0.00019342,2]
[365431582,1749666650116,-490.0,0.00019342,2]
[365431583,1749666650125,-490.0,0.00019342,2]
[365431584,1749666650135,-490.0,0.00019342,2]
[365431585,1749666650144,-636.07,0.00019342,2]
[365431586,1749666650154,-363.64340497,0.00019342,2]
[365431587,1749666650163,-490.0,0.00019342,2]
[365431588,1749666650174,-5835.59,0.00019342,2]
[365431589,1749666650183,-3419.09,0.00019342,2]
[365431590,1749666650195,-490.0,0.00019342,2]
[365431591,1749666650204,-1075.39,0.00019342,2]
[365431592,1749666650213,-723.16,0.00019342,2]
[365431593,1749666650222,-602.88,0.00019342,2]
[365431594,1749666650231,-648.55,0.00019342,2]
[365431595,1749666650241,-490.0,0.00019342,2]
[365431596,1749666650250,-490.0,0.00019342,2]
[365431597,1749666650260,-809.75,0.00019342,2]
[365431598,1749666650270,-490.0,0.00019342,2]
[365431599,1749666650279,-490.0,0.00019342,2]
[365431600,1749666650289,-729.02,0.00019342,2]
[365431601,1749666650299,-971.76,0.00019342,2]
[365431602,1749666650308,-490.0,0.00019342,2]
[365431603,1749666650318,-926.65,0.00019342,2]
[365431604,1749666650329,-490.0,0.00019342,2]
[365431605,1749666650340,-490.0,0.00019342,2]
[365431606,1749666650349,-490.0,0.00019342,2]
[365431607,1749666650358,-490.0,0.00019342,2]
[365431608,1749666650367,-490.0,0.00019342,2]
[365431609,1749666650378,-516.06,0.00019342,2]
[365431610,1749666650387,-490.0,0.00019342,2]
[365431611,1749666650396,-490.0,0.00019342,2]
[365431612,1749666650406,-490.0,0.00019342,2]
[365431613,1749666650416,-490.0,0.00019342,2]
[365431614,1749666650426,-490.0,0.00019342,2]
[365431615,1749666650435,-490.0,0.00019342,2]
[365431616,1749666650445,-490.0,0.00019342,2]
[365431617,1749666650454,-544.83,0.00019342,2]
[365431618,1749666650463,-490.0,0.00019342,2]
[365431619,1749666650473,-490.0,0.00019342,2]
[365431620,1749666650483,-490.0,0.00019342,2]
[365431621,1749666650492,-490.0,0.00019342,2]
[365431622,1749666650502,-598.79,0.00019342,2]
[365431623,1749666650511,-490.0,0.00019342,2]
[365431624,1749666650521,-574.23,0.00019342,2]
[365431625,1749666650530,-490.0,0.00019342,2]
[365431626,1749666650540,-490.0,0.00019342,2]
[365431627,1749666650550,-490.0,0.00019342,2]
[365431628,1749666650560,-490.0,0.00019342,2]
[365431629,1749666650569,-490.0,0.00019342,2]
[365431630,1749666650579,-637.67,0.00019342,2]
[365431631,1749666650589,-733.35,0.00019342,2]
[365431632,1749666650598,-490.0,0.00019342,2]
[365431633,1749666650608,-681.45,0.00019342,2]
[365431634,1749666650617,-490.0,0.00019342,2]
[365431635,1749666650627,-490.0,0.00019342,2]
[365431636,1749666650636,-490.0,0.00019342,2]
[365431637,1749666650645,-490.0,0.00019342,2]
[365431638,1749666650655,-653.25,0.00019342,2]
[365431639,1749666650664,-667.57,0.00019342,2]
[365431640,1749666650674,-1444.65,0.00019342,2]
[365431641,1749666650683,-1494.96,0.00019342,2]
[365431642,1749666650692,-648.73,0.00019342,2]
[365431643,1749666650703,-382.52,0.00019342,2]
[365431644,1749666650712,-490.0,0.00019342,2]
[365431645,1749666650722,-490.0,0.00019342,2]
[365431646,1749666650732,-490.0,0.00019342,2]
[365431647,1749666650741,-490.0,0.00019342,2]
[365431648,1749666650751,-675.71,0.00019342,2]
[365431649,1749666650760,-490.0,0.00019342,2]
[365431650,1749666650770,-490.0,0.00019342,2]
[365431651,1749666650779,-1045.89,0.00019342,2]
[365431652,1749666650789,-2032.66,0.00019342,2]
[365431653,1749666650798,-2026.38,0.00019342,2]
[365431654,1749666650808,-490.0,0.00019342,2]
[365431655,1749666650817,-741.5,0.00019342,2]
[365431656,1749666650827,-490.0,0.00019342,2]
[365431657,1749666650837,-490.0,0.00019342,2]
[365431658,1749666650847,-490.0,0.00019342,2]
[365431659,1749666650856,-848.6,0.00019342,2]
[365431660,1749666650865,-214.75988668,0.00019342,2]
[365431661,1749666650875,-490.0,0.00019342,2]
[365431662,1749666650885,-664.13,0.00019342,2]
[365431663,1749666650894,-490.0,0.00019342,2]
[365431664,1749666650903,-3588.59,0.00019342,2]
[365431665,1749666650913,-490.0,0.00019342,2]
[365431666,1749666650922,-1085.24,0.00019342,2]
[365431667,1749666650932,-490.0,0.00019342,2]
[365431668,1749666650941,-490.0,0.00019342,2]
[365431669,1749666650952,-490.0,0.00019342,2]
[365431670,1749666650962,-1890.9,0.00019342,2]
[365431671,1749666650971,-490.0,0.00019342,2]
[365431672,1749666650980,-490.0,0.00019342,2]
[365431673,1749666650990,-546.36,0.00019342,2]
[365431674,1749666650999,-490.0,0.00019342,2]
[365431675,1749666651008,-490.0,0.00019342,2]
[365431676,1749666651018,-633.4,0.00019342,2]
[365431677,1749666651028,-490.0,0.00019342,2]
[365431678,1749666651037,-1000.0,0.00019342,2]
[365431679,1749666651046,-490.0,0.00019342,2]
[365431680,1749666651056,-559.44,0.00019342,2]
[365431681,1749666651065,-490.0,0.00019342,2]
[365431682,1749666651074,-490.0,0.00019342,2]
[365431683,1749666651083,-490.0,0.00019342,2]
[365431684,1749666651093,-490.0,0.00019342,2]
[365431685,1749666651102,-748.48,0.00019342,2]
[365431686,1749666651112,-490.0,0.00019342,2]
[365431687,1749666651121,-626.49,0.00019342,2]
[365431688,1749666651131,-1182.47,0.00019342,2]
[365431689,1749666651140,-503.19,0.00019342,2]
[365431690,1749666651149,-490.0,0.00019342,2]
[365431691,1749666651159,-522.08,0.00019342,2]
[365431692,1749666651168,-490.0,0.00019342,2]
[365431693,1749666651178,-490.0,0.00019342,2]
[365431694,1749666651187,-684.32,0.00019342,2]
[365431695,1749666651198,-490.0,0.00019342,2]
[365431696,1749666651208,-836.74,0.00019342,2]
[365431697,1749666651219,-244.06716392,0.00019342,2]
[365431698,1749666651228,-490.0,0.00019342,2]
[365431699,1749666651238,-490.0,0.00019342,2]
[365431700,1749666651247,-788.39,0.00019342,2]
[365431701,1749666651256,-1479.29,0.00019342,2]
[365431702,1749666651265,-490.0,0.00019342,2]
[365431703,1749666651274,-490.0,0.00019342,2]
[365431704,1749666651284,-490.0,0.00019342,2]
[365431705,1749666651293,-490.0,0.00019342,2]
[365431706,1749666651302,-490.0,0.00019342,2]
[365431707,1749666651312,-4066.47,0.00019342,2]
[365431708,1749666651323,-490.0,0.00019342,2]
[365431709,1749666651336,-2919.75940895,0.00019356,2]
[365431710,1749666651346,-833.29909032,0.00019394,2]
[365431711,1749666651355,-157.24630606,0.00019406,2]
[365431712,1749666651365,-3027.79050709,0.00019411,2]
[365431713,1749666651374,-420.0,0.00019421,2]
[365431714,1749666651383,-3139.81875585,0.00019466,2]
[365431715,1749666651394,-167.73,0.00019483,2]
[365431716,1749666651405,-927.63469094,0.000195,2]
[365431717,1749666651415,-637.75,0.00019505,2]
[365431718,1749666651424,-877.52,0.00019505,2]
[365431719,1749666651434,-490.0,0.00019506,2]
[365431720,1749666651445,-491.19,0.00019506,2]
[365431721,1749666651455,-458.88051206,0.00019506,2]
[365431722,1749666651466,-505.37386653,0.00019506,2]
[365431723,1749666651475,-490.0,0.00019506,2]
[365431724,1749666651485,-503.54223052,0.00019506,2]
[365431725,1749666651496,-490.0,0.00019506,2]
[365431726,1749666651506,-490.0,0.00019506,2]
[365431727,1749666651516,-245.1466283,0.00019506,2]
[365431728,1749666651525,-695.34,0.00019506,2]
[365431729,1749666651536,-490.0,0.00019506,2]
[365431730,1749666651547,-490.0,0.00019506,2]
[365431731,1749666651556,-651.15,0.00019506,2]
[365431732,1749666651566,-465.71570662,0.00019506,2]
[365431733,1749666651577,-490.0,0.00019506,2]
[365431734,1749666651587,-490.0,0.00019506,2]
[365431735,1749666651596,-667.0,0.00019506,2]
[365431736,1749666651605,-490.0,0.00019506,2]
[365431737,1749666651615,-490.0,0.00019506,2]
[365431738,1749666651625,-594.68,0.00019506,2]
[365431739,1749666651635,-490.0,0.00019506,2]
[365431740,1749666651644,-490.0,0.00019506,2]
[365431741,1749666651654,-480.0,0.00019506,2]
[365431742,1749666651664,-490.0,0.00019506,2]
[365431743,1749666651674,-490.0,0.00019506,2]
[365431744,1749666651684,-490.0,0.00019506,2]
[365431745,1749666651697,-490.0,0.00019506,2]
[365431746,1749666651707,-490.0,0.00019506,2]
[365431747,1749666651718,-490.0,0.00019506,2]
[365431748,1749666651728,-490.0,0.00019506,2]
[365431749,1749666651738,-480.0,0.00019506,2]
[365431750,1749666651748,-490.0,0.00019506,2]
[365431751,1749666651759,-490.0,0.00019506,2]
[365431752,1749666651769,-480.0,0.00019506,2]
[365431753,1749666651779,-546.31,0.00019506,2]
[365431754,1749666651790,-480.0,0.00019506,2]
[365431755,1749666651800,-570.15,0.00019506,2]
[365431756,1749666651811,-490.0,0.00019506,2]
[365431757,1749666651821,-321.13201187,0.00019506,2]
[365431758,1749666651832,-490.0,0.00019506,2]
[365431759,1749666651842,-516.47,0.00019506,2]
[365431760,1749666651852,-424.30209601,0.00019506,2]
[365431761,1749666651862,-490.0,0.00019506,2]
[365431762,1749666651872,-412.62,0.00019506,2]
[365431763,1749666651882,-707.63,0.00019506,2]
[365431764,1749666651891,-490.0,0.00019506,2]
[365431765,1749666651902,-416.0,0.00019506,2]
[365431766,1749666651911,-639.53,0.00019506,2]
[365431767,1749666651922,-490.0,0.00019506,2]
[365431768,1749666651933,-1527.267614,0.00019506,2]
[365431769,1749666651946,-505.14,0.00019506,2]
[365431770,1749666651959,-502.31,0.00019506,2]
[365431771,1749666651969,-490.0,0.00019506,2]
[365431772,1749666651980,-516.57,0.00019506,2]
[365431773,1749666651989,-490.0,0.00019506,2]
[365431774,1749666651999,-490.0,0.00019506,2]
[365431775,1749666652009,-490.0,0.00019506,2]
[365431776,1749666652019,-538.45,0.00019506,2]
[365431777,1749666652029,-1025.629265,0.00019506,2]
[365431778,1749666652039,-490.0,0.00019506,2]
[365431779,1749666652048,-490.0,0.00019506,2]
[365431780,1749666652058,-490.0,0.00019506,2]
[365431781,1749666652068,-490.0,0.00019506,2]
[365431782,1749666652078,-490.0,0.00019506,2]
[365431783,1749666652088,-490.0,0.00019506,2]
[365431784,1749666652098,-460.0,0.00019506,2]
[365431785,1749666652107,-490.0,0.00019506,2]
[365431786,1749666652117,-809.64,0.00019506,2]
[365431787,1749666652127,-490.0,0.00019506,2]
[365431788,1749666652137,-479.17572594,0.00019506,2]
[365431789,1749666652147,-490.0,0.00019506,2]
[365431790,1749666652157,-490.0,0.00019506,2]
[365431791,1749666652167,-490.0,0.00019506,2]
[365431792,1749666652176,-490.0,0.00019506,2]
[365431793,1749666652186,-160.02,0.00019506,2]
[365431794,1749666652197,-490.0,0.00019506,2]
[365431795,1749666652207,-490.0,0.00019506,2]
[365431796,1749666652216,-490.0,0.00019506,2]
[365431797,1749666652226,-490.0,0.00019506,2]
[365431798,1749666652236,-490.0,0.00019506,2]
[365431799,1749666652245,-490.0,0.00019506,2]
[365431800,1749666652255,-530.15,0.00019506,2]
[365431801,1749666652265,-490.0,0.00019506,2]
[365431802,1749666652274,-490.0,0.00019506,2]
[365431803,1749666652284,-343.76,0.00019506,2]
[365431804,1749666652293,-490.0,0.00019506,2]
[365431805,1749666652302,-490.0,0.00019506,2]
[365431806,1749666652312,-490.0,0.00019506,2]
[365431807,1749666652322,-490.0,0.00019506,2]
[365431808,1749666652334,-308.63,0.00019506,2]
[365431809,1749666652344,-490.0,0.00019506,2]
[365431810,1749666652355,-524.2,0.00019506,2]
[365431811,1749666652365,-490.0,0.00019506,2]
[365431812,1749666652376,-490.0,0.00019506,2]
[365431813,1749666652386,-711.92,0.00019506,2]
[365431814,1749666652395,-490.0,0.00019506,2]
[365431815,1749666652406,-490.0,0.00019506,2]
[365431816,1749666652415,-524.6,0.00019506,2]
[365431817,1749666652425,-490.0,0.00019506,2]
[365431818,1749666652434,-490.0,0.00019506,2]
[365431819,1749666652446,-490.0,0.00019506,2]
[365431820,1749666652455,-490.0,0.00019506,2]
[365431821,1749666652465,-502.34,0.00019506,2]
[365431822,1749666652474,-423.58,0.00019506,2]
[365431823,1749666652484,-490.0,0.00019506,2]
[365431824,1749666652493,-2132.71,0.00019506,2]
[365431825,1749666652503,-490.0,0.00019506,2]
[365431826,1749666652512,-490.0,0.00019506,2]
[365431827,1749666652522,-2172.39,0.00019506,2]
[365431828,1749666652532,-628.46,0.00019506,2]
[365431829,1749666652541,-490.0,0.00019506,2]
[365431830,1749666652551,-738.78,0.00019506,2]
[365431831,1749666652561,-490.0,0.00019506,2]
[365431832,1749666652571,-490.0,0.00019506,2]
[365431833,1749666652580,-786.19,0.00019506,2]
[365431834,1749666652589,-4967.78,0.00019506,2]
[365431835,1749666652599,-490.0,0.00019506,2]
[365431836,1749666652609,-490.0,0.00019506,2]
[365431837,1749666652619,-490.0,0.00019506,2]
[365431838,1749666652628,-490.0,0.00019506,2]
[365431839,1749666652638,-697.72,0.00019506,2]
[365431840,1749666652648,-490.0,0.00019506,2]
[365431841,1749666652657,-563.76,0.00019506,2]
[365431842,1749666652667,-490.0,0.00019506,2]
[365431843,1749666652676,-490.0,0.00019506,2]
[365431844,1749666652686,-490.0,0.00019506,2]
[365431845,1749666652696,-490.0,0.00019506,2]
[365431846,1749666652706,-1084.41,0.00019506,2]
[365431847,1749666652715,-433.34,0.00019506,2]
[365431848,1749666652725,-490.0,0.00019506,2]
[365431849,1749666652735,-524.74,0.00019506,2]
[365431850,1749666652745,-490.0,0.00019506,2]
[365431851,1749666652755,-490.0,0.00019506,2]
[365431852,1749666652765,-490.0,0.00019506,2]
[365431853,1749666652775,-490.0,0.00019506,2]
[365431854,1749666652785,-490.0,0.00019506,2]
[365431855,1749666652794,-672.06,0.00019506,2]
[365431856,1749666652804,-490.0,0.00019506,2]
[365431857,1749666652815,-490.0,0.00019506,2]
[365431858,1749666652825,-490.0,0.00019506,2]
[365431859,1749666652835,-597.69336412,0.00019506,2]
[365431860,1749666652844,-490.0,0.00019506,2]
[365431861,1749666652854,-630.04595693,0.00019506,2]
[365431862,1749666652864,-490.0,0.00019506,2]
[365431863,1749666652874,-2960.21,0.00019506,2]
[365431864,1749666652883,-592.64,0.00019506,2]
[365431865,1749666652893,-490.0,0.00019506,2]
[365431866,1749666652904,-6830.81,0.00019506,2]
[365431867,1749666652913,-2153.63,0.00019506,2]
[365431868,1749666652923,-622.08,0.00019506,2]
[365431869,1749666652933,-504.32,0.00019506,2]
[365431870,1749666652942,-490.0,0.00019506,2]
[365431871,1749666652954,-490.0,0.00019506,2]
[365431872,1749666652964,-238.93869576,0.00019506,2]
[365431873,1749666652974,-490.0,0.00019506,2]
[365431874,1749666652984,-952.96,0.00019506,2]
[365431875,1749666652994,-490.0,0.00019506,2]
[365431876,1749666653003,-470.0,0.00019506,2]
[365431877,1749666653013,-490.0,0.00019506,2]
[365431878,1749666653023,-636.07,0.00019506,2]
[365431879,1749666653033,-490.0,0.00019506,2]
[365431880,1749666653043,-5835.59,0.00019506,2]
[365431881,1749666653052,-3419.09,0.00019506,2]
[365431882,1749666653062,-490.0,0.00019506,2]
[365431883,1749666653072,-1075.39,0.00019506,2]
[365431884,1749666653082,-723.16,0.00019506,2]
[365431885,1749666653091,-602.88,0.00019506,2]
[365431886,1749666653101,-648.55,0.00019506,2]
[365431887,1749666653112,-490.0,0.00019506,2]
[365431888,1749666653122,-490.0,0.00019506,2]
[365431889,1749666653132,-809.75,0.00019506,2]
[365431890,1749666653142,-490.0,0.00019506,2]
[365431891,1749666653151,-490.0,0.00019506,2]
[365431892,1749666653161,-729.02,0.00019506,2]
[365431893,1749666653170,-971.76,0.00019506,2]
[365431894,1749666653179,-490.0,0.00019506,2]
[365431895,1749666653189,-926.65,0.00019506,2]
[365431896,1749666653201,-490.0,0.00019506,2]
[365431897,1749666653211,-490.0,0.00019506,2]
[365431898,1749666653220,-490.0,0.00019506,2]
[365431899,1749666653230,-490.0,0.00019506,2]
[365431900,1749666653239,-490.0,0.00019506,2]
[365431901,1749666653249,-516.06,0.00019506,2]
[365431902,1749666653259,-490.0,0.00019506,2]
[365431903,1749666653269,-490.0,0.00019506,2]
[365431904,1749666653278,-490.0,0.00019506,2]
[365431905,1749666653288,-490.0,0.00019506,2]
[365431906,1749666653297,-490.0,0.00019506,2]
[365431907,1749666653307,-490.0,0.00019506,2]
[365431908,1749666653318,-490.0,0.00019506,2]
[365431909,1749666653330,-544.83,0.00019506,2]
[365431910,1749666653340,-490.0,0.00019506,2]
[365431911,1749666653350,-490.0,0.00019506,2]
[365431912,1749666653360,-490.0,0.00019506,2]
[365431913,1749666653371,-490.0,0.00019506,2]
[365431914,1749666653380,-598.79,0.00019506,2]
[365431915,1749666653391,-490.0,0.00019506,2]
[365431916,1749666653401,-574.23,0.00019506,2]
[365431917,1749666653411,-490.0,0.00019506,2]
[365431918,1749666653420,-490.0,0.00019506,2]
[365431919,1749666653430,-490.0,0.00019506,2]
[365431920,1749666653439,-490.0,0.00019506,2]
[365431921,1749666653450,-490.0,0.00019506,2]
[365431922,1749666653460,-637.67,0.00019506,2]
[365431923,1749666653470,-733.35,0.00019506,2]
[365431924,1749666653480,-490.0,0.00019506,2]
[365431925,1749666653490,-681.45,0.00019506,2]
[365431926,1749666653500,-490.0,0.00019506,2]
[365431927,1749666653510,-321.32,0.00019506,2]
[365431928,1749666653520,-490.0,0.00019506,2]
[365431929,1749666653530,-490.0,0.00019506,2]
[365431930,1749666653540,-653.25,0.00019506,2]
[365431931,1749666653549,-667.57,0.00019506,2]
[365431932,1749666653559,-1444.65,0.00019506,2]
[365431933,1749666653570,-1494.96,0.00019506,2]
[365431934,1749666653579,-648.73,0.00019506,2]
[365431935,1749666653794,-490.0,0.00019506,2]
[365431936,1749666653843,-176.09,0.00019506,2]
[365431937,1749666653852,-490.0,0.00019506,2]
[365431938,1749666653862,-490.0,0.00019506,2]
[365431939,1749666653872,-675.71,0.00019506,2]
[365431940,1749666653881,-490.0,0.00019506,2]
[365431941,1749666653891,-490.0,0.00019506,2]
[365431942,1749666653900,-1045.89,0.00019506,2]
[365431943,1749666653910,-2032.66,0.00019506,2]
[365431944,1749666653919,-2026.38,0.00019506,2]
[365431945,1749666653929,-331.68,0.00019506,2]
[365431946,1749666653939,-741.5,0.00019506,2]
[365431947,1749666653949,-490.0,0.00019506,2]
[365431948,1749666653958,-207.03,0.00019506,2]
[365431949,1749666653967,-490.0,0.00019506,2]
[365431950,1749666653976,-848.6,0.00019506,2]
[365431951,1749666653986,-490.0,0.00019506,2]
[365431952,1749666653994,-664.13,0.00019506,2]
[365431953,1749666654005,-490.0,0.00019506,2]
[365431954,1749666654014,-3588.59,0.00019506,2]
[365431955,1749666654023,-490.0,0.00019506,2]
[365431956,1749666654033,-1085.24,0.00019506,2]
[365431957,1749666654042,-490.0,0.00019506,2]
[365431958,1749666654051,-490.0,0.00019506,2]
[365431959,1749666654060,-490.0,0.00019506,2]
[365431960,1749666654069,-1890.9,0.00019506,2]
[365431961,1749666654078,-490.0,0.00019506,2]
[365431962,1749666654088,-490.0,0.00019506,2]
[365431963,1749666654097,-546.36,0.00019506,2]
[365431964,1749666654106,-564.42,0.00019506,2]
[365431965,1749666654115,-490.0,0.00019506,2]
[365431966,1749666654124,-633.4,0.00019506,2]
[365431967,1749666654134,-490.0,0.00019506,2]
[365431968,1749666654144,-1000.0,0.00019506,2]
[365431969,1749666654153,-490.0,0.00019506,2]
[365431970,1749666654162,-559.44,0.00019506,2]
[365431971,1749666654171,-490.0,0.00019506,2]
[365431972,1749666654181,-490.0,0.00019506,2]
[365431973,1749666654190,-490.0,0.00019506,2]
[365431974,1749666654200,-490.0,0.00019506,2]
[365431975,1749666654211,-748.48,0.00019506,2]
[365431976,1749666654220,-490.0,0.00019506,2]
[365431977,1749666654230,-626.49,0.00019506,2]
[365431978,1749666654239,-1182.47,0.00019506,2]
[365431979,1749666654248,-503.19,0.00019506,2]
[365431980,1749666654257,-490.0,0.00019506,2]
[365431981,1749666654266,-522.08,0.00019506,2]
[365431982,1749666654275,-490.0,0.00019506,2]
[365431983,1749666654285,-684.32,0.00019506,2]
[365431984,1749666654293,-490.0,0.00019506,2]
[365431985,1749666654302,-490.0,0.00019506,2]
[365431986,1749666654312,-477.73516468,0.00019506,2]
[365431987,1749666654649,-359.00483532,0.00019506,2]
[365431988,1749666654659,-490.0,0.00019506,2]
[365431989,1749666654669,-490.0,0.00019506,2]
[365431990,1749666654679,-788.39,0.00019506,2]
[365431991,1749666654688,-861.17765164,0.00019506,2]
[365431992,1749666654701,-614.06782139,0.00019506,2]
[365431993,1749666654722,-4.04452697,0.00019506,2]
[365431994,1749666654732,-490.0,0.00019506,2]
[365431995,1749666654742,-26.58387694,0.00019506,2]
[365431996,1749666654759,-490.0,0.00019342,2]
[365431997,1749666654769,-463.41612306,0.00019506,2]
[365431998,1749666654779,-490.0,0.00019506,2]
[365431999,1749666654789,-490.0,0.00019506,2]
[365432000,1749666654799,-341.33108003,0.00019506,2]
[365432001,1749666654812,-3725.13891997,0.00019506,2]
[365432002,1749666654822,-490.0,0.00019506,2]
[365432003,1749666654831,-300.91,0.00019506,2]
[365432004,1749666654841,-29.72748393,0.00019521,2]
[365432005,1749666654854,-1656.64533296,0.00019521,2]
[365432006,1749666654867,-494.24817556,0.00019521,2]
[365432007,1749666655347,-263.0,0.0001749,2]
[365432008,1749666655356,-2138.82,0.00019178,2]
[365432009,1749666655366,-490.0,0.00019178,2]
[365432010,1749666655377,-1632.55586771,0.00019261,2]
[365432011,1749666655386,-1769.33543388,0.00019342,2]
[365432012,1749666655398,-369.48456612,0.00019342,2]
[365432013,1749666655408,-1081.48276686,0.00019352,2]
[365432014,1749666655418,-490.0,0.00019506,2]
[365432015,1749666655427,-2138.82,0.00019506,2]
[365432016,1749666655436,-1075.37105736,0.00019521,2]
[365432017,1749666655447,-354.05993382,0.00019576,2]